[Event "Commonwealth Open 2019"]
[Site "Delhi"]
[Date "2019.07.06"]
[Round "8.1"]
[White "Swapnil, S. Dhopade"]
[Black "Gupta, Abhijeet"]
[Result "1/2-1/2"]
[ECO "A48"]
[WhiteElo "2488"]
[BlackElo "2606"]
[Annotator "RC"]
[PlyCount "287"]
[EventDate "2019.06.30"]
[EventType "swiss"]
[EventCountry "IND"]
[SourceTitle "playchess.com"]
[Source "ChessBase"]
[SourceQuality "1"]
[TimeControl "5400+30"]

1. d4 {[%emt 0:00:00]} Nf6 {[%emt 0:00:00]} 2. Nf3 {[%emt 0:00:00]} g6 {[%emt 0:00:00]} 3. b3 {[%emt 0:00:00]} Bg7 {[%emt 0:03:27]} 4. Bb2 {[%emt 0:00:00]} c5 {[%emt 0:00:38]} 5. dxc5 {[%emt 0:00:15]} Qa5+ {[%emt 0:00:29]} 6. Nbd2 {[%emt 0:00:41]} O-O {[%emt 0:01:16]} 7. e3 {[%emt 0:02:02]} Qxc5 {[%emt 0:07:44]} 8. c4 {[%emt 0:00:04]} b6 {[%emt 0:00:39]} 9. Be2 {[%emt 0:00:50]} Bb7 {[%emt 0:00:04]} 10. O-O {[%emt 0:02:36]} d6 {[%emt 0:00:16]} 11. Rc1 {[%emt 0:00:24]} Nbd7 {[%emt 0:00:11]} 12. Nb1 {[%emt 0:00:44]} Rad8 {[%emt 0:02:52]} 13. Nc3 {[%emt 0:00:50]} Ne4 {[%emt 0:00:54]} 14. Nxe4 {[%emt 0:17:20]} Bxe4 {[%emt 0:00:05]} 15. Bxg7 {[%emt 0:01:42]} Kxg7 {[%emt 0:00:04]} 16. Qd2 {[%emt 0:00:15]} Nf6 {[%emt 0:01:21]} 17. Rfd1 {[%emt 0:00:34]} Bb7 {[%emt 0:04:52]} 18. Qb2 {[%emt 0:08:52]} Qc8 {[%emt 0:01:22]} 19. Nd4 {[%emt 0:00:58]} Kg8 {[%emt 0:03:37]} 20. Nb5 {[%emt 0:15:58]} Qb8 {[%emt 0:05:56]} 21. Qa3 {[%emt 0:00:57]} a6 {[%emt 0:02:14]} 22. Nc3 {[%emt 0:00:14]} Qa8 {[%emt 0:02:19]} 23. Bf1 {[%emt 0:00:45]} Bc6 {[%emt 0:01:47]} 24. Rd4 {[%emt 0:02:23]} Rc8 {[%emt 0:03:20]} 25. Rcd1 {[%emt 0:00:40]} Ne4 {[%emt 0:07:10]} 26. Nxe4 {[%emt 0:01:00]} Bxe4 {[%emt 0:00:06]} 27. Qb4 {[%emt 0:01:41]} Rc5 {[%emt 0:04:31]} 28. Qd2 {[%emt 0:11:44]} Rg5 {[%emt 0:10:17]} 29. f4 {[%emt 0:03:16]} Rc5 {[%emt 0:00:06]} 30. Bd3 {[%emt 0:05:05]} Bxd3 {[%emt 0:05:18]} 31. Qxd3 {[%emt 0:00:23]} b5 {[%emt 0:01:24]} 32. cxb5 {[%emt 0:10:09]} axb5 {[%emt 0:00:07]} 33. b4 {[%emt 0:00:05]} Rc7 {[%emt 0:00:06]} 34. Qxb5 {[%emt 0:01:06]} Qxa2 {[%emt 0:02:22]} 35. Qa5 {[%emt 0:00:36]} Qc2 {[%emt 0:00:41]} 36. R4d2 {[%emt 0:00:46]} Qc6 {[%emt 0:03:20]} 37. Qd5 {[%emt 0:04:52]} Qb6 {[%emt 0:00:40]} 38. Qd4 {[%emt 0:00:15]} Qb5 {[%emt 0:00:07]} 39. Rb2 {[%emt 0:00:33]} Rfc8 {[%emt 0:02:07]} 40. Qd5 {[%emt 0:00:29]} Qa4 {[%emt 0:02:40]} 41. b5 {[%emt 0:02:02]} Rc5 {[%emt 0:07:33]} 42. Qb3 {[%emt 0:00:44]} Qe4 {[%emt 0:00:21]} 43. Qd3 {[%emt 0:00:35]} Qxd3 {[%emt 0:05:31]} 44. Rxd3 {[%emt 0:00:01]} Rc1+ {[%emt 0:00:06]} 45. Kf2 {[%emt 0:00:04]} R8c2+ {[%emt 0:00:03]} 46. Rxc2 {[%emt 0:04:06]} Rxc2+ {[%emt 0:00:02]} 47. Kf3 {[%emt 0:00:11]} Rb2 {[%emt 0:00:04]} 48. Rd5 {[%emt 0:00:55]} f5 {[%emt 0:00:06]} 49. h3 {[%emt 0:02:30]} Kf7 {[%emt 0:00:44]} 50. g4 {[%emt 0:00:06]} Ke6 {[%emt 0:00:31]} 51. Rd1 {[%emt 0:01:35]} Rxb5 {[%emt 0:00:06]} 52. g5 {[%emt 0:00:54]} Rb8 {[%emt 0:05:01]} 53. h4 {[%emt 0:00:12]} h5 {[%emt 0:00:34]} 54. Ra1 {[%emt 0:00:22]} Rb2 {[%emt 0:00:14]} 55. Rd1 {[%emt 0:01:18]} Rc2 {[%emt 0:00:10]} 56. Kg3 {[%emt 0:00:11]} Rc5 {[%emt 0:00:23]} 57. Kf3 {[%emt 0:00:41]} Rd5 {[%emt 0:00:05]} 58. Rb1 {[%emt 0:00:18]} Rd2 {[%emt 0:00:04]} 59. Ra1 {[%emt 0:00:15]} Kf7 {[%emt 0:00:34]} 60. Kg3 {[%emt 0:00:25]} Rc2 {[%emt 0:03:44]} 61. Kf3 {[%emt 0:00:05]} Rc7 {[%emt 0:01:53]} 62. Rd1 {[%emt 0:00:59]} Rc3 {[%emt 0:01:04]} 63. Kf2 {[%emt 0:00:26]} Ke6 {[%emt 0:00:33]} 64. Kf3 {[%emt 0:00:04]} Kd7 {[%emt 0:01:22]} 65. Kf2 {[%emt 0:00:41]} Kc6 {[%emt 0:01:00]} 66. Ra1 {[%emt 0:00:10]} Kd5 {[%emt 0:00:24]} 67. Kf3 {[%emt 0:00:09]} e5 {[%emt 0:00:52]} 68. fxe5 {[%emt 0:00:11]} dxe5 {[%emt 0:00:44]} 69. Ra5+ {[%emt 0:00:12]} Rc5 {[%emt 0:00:14]} 70. Ra8 {[%emt 0:00:30]} Rc6 {[%emt 0:01:39]} 71. Ra1 {[%emt 0:00:48]} Rc3 {[%emt 0:00:00]} 72. Ra5+ {[%emt 0:00:12]} Rc5 {[%emt 0:00:00]} 73. Ra8 {[%emt 0:00:30]} Rc6 {[%emt 0:01:30]} 74. Rg8 {[%emt 0:01:26]} Rd6 {[%emt 0:00:33]} 75. Rg7 {[%emt 0:00:25]} Kc4 {[%emt 0:00:26]} 76. Rf7 {[%emt 0:00:50]} Rd3 {[%emt 0:01:32]} 77. Rc7+ {[%emt 0:00:53]} Kd5 {[%emt 0:00:17]} 78. Rd7+ {[%emt 0:00:41]} Ke6 {[%emt 0:00:29]} 79. Rg7 {[%emt 0:01:04]} f4 {[%emt 0:00:07]} 80. Rxg6+ {[%emt 0:00:01]} Kd5 {[%emt 0:00:04]} 81. Rh6 {[%emt 0:00:20]} Rxe3+ {[%emt 0:00:05]} 82. Kf2 {[%emt 0:00:03]} Rg3 {[%emt 0:02:14]} 83. Rxh5 {[%emt 0:00:04]} e4 {[%emt 0:00:08]} 84. Rh8 {[%emt 0:01:16]} e3+ {[%emt 0:00:18]} 85. Ke2 {[%emt 0:00:20]} Ke4 {[%emt 0:01:09]} 86. Re8+ {[%emt 0:00:08]} Kf5 {[%emt 0:00:03]} 87. Rf8+ {[%emt 0:01:03]} Kg4 {[%emt 0:00:03]} 88. g6 {[%emt 0:00:33]} Rg2+ {[%emt 0:00:04]} 89. Kd3 {[%emt 0:01:04]} e2 {[%emt 0:02:22]} 90. Kd2 {[%emt 0:00:39]} Kf3 {[%emt 0:00:03]} 91. Re8 {[%emt 0:00:18]} Rxg6 {[%emt 0:00:37]} 92. Rxe2 {[%emt 0:00:04]} Rh6 {[%emt 0:00:15]} 93. Ke1 {[%emt 0:00:47]} Kg3 {[%emt 0:00:59]} 94. Kf1 {[%emt 0:00:22]} Rxh4 {[%emt 0:00:32]} 95. Kg1 {[%emt 0:01:03]} Rh8 {[%emt 0:00:27]} 96. Re7 {[%emt 0:00:22]} Kf3 {[%emt 0:00:39]} 97. Rf7 {[%emt 0:00:31]} Rg8+ {[%emt 0:00:17]} 98. Kf1 {[%emt 0:00:22]} Rg6 {[%emt 0:00:41]} 99. Rf8 {[%emt 0:00:04]} Kg3 {[%emt 0:00:22]} 100. Kg1 {[%emt 0:00:16]} Rg7 {[%emt 0:00:07]} 101. Rf6 {[%emt 0:00:20]} Kf3+ {[%emt 0:00:24]} 102. Kf1 {[%emt 0:00:02]} Rh7 {[%emt 0:00:10]} 103. Kg1 {[%emt 0:00:09]} Ra7 {[%emt 0:00:05]} 104. Rf8 {[%emt 0:00:07]} Ra2 {[%emt 0:00:00]} 105. Kf1 {[%emt 0:00:00]} Rg2 {[%emt 0:00:00]} 106. Rf6 {[%emt 0:00:00]} Rg7 {[%emt 0:00:00]} 107. Rf8 {[%emt 0:00:07]} Ra7 {[%emt 0:00:05]} 108. Kg1 {[%emt 0:00:00]} Ra1+ {[%emt 0:00:00]} 109. Kh2 {[%emt 0:00:00]} Ke3 {[%emt 0:00:00]} 110. Kg2 {[%emt 0:00:09]} Ra2+ {[%emt 0:00:00]} 111. Kf1 {[%emt 0:00:06]} Ra7 {[%emt 0:00:16]} 112. Kg2 {[%emt 0:01:00]} Rg7+ {[%emt 0:00:03]} 113. Kf1 {[%emt 0:00:06]} Kf3 {[%emt 0:00:08]} 114. Rf6 {[%emt 0:00:16]} Ra7 {[%emt 0:00:57]} 115. Kg1 {[%emt 0:00:08]} Ra1+ {[%emt 0:00:05]} 116. Kh2 {[%emt 0:00:03]} Rf1 {[%emt 0:00:08]} 117. Ra6 {[%emt 0:00:10]} Rf2+ {[%emt 0:00:09]} 118. Kg1 {[%emt 0:00:24]} Re2 {[%emt 0:00:08]} 119. Rf6 {[%emt 0:00:59]} Re1+ {[%emt 0:00:20]} 120. Kh2 {[%emt 0:00:04]} Re5 {[%emt 0:00:19]} 121. Kg1 {[%emt 0:00:29]} Ke3 {[%emt 0:00:32]} 122. Kg2 {[%emt 0:00:10]} Rg5+ {[%emt 0:00:03]} 123. Kf1 {[%emt 0:00:11]} Ra5 {[%emt 0:00:08]} 124. Kg2 {[%emt 0:00:10]} Ra2+ {[%emt 0:00:02]} 125. Kf1 {[%emt 0:00:25]} Kf3 {[%emt 0:00:04]} 126. Kg1 {[%emt 0:00:02]} Ra8 {[%emt 0:01:09]} 127. Rf7 {[%emt 0:01:22]} Re8 {[%emt 0:00:09]} 128. Kf1 {[%emt 0:01:01]} Rd8 {[%emt 0:00:22]} 129. Kg1 {[%emt 0:00:09]} Rd1+ {[%emt 0:00:04]} 130. Kh2 {[%emt 0:00:03]} Re1 {[%emt 0:00:03]} 131. Rf8 {[%emt 0:00:12]} Ke3 {[%emt 0:00:19]} 132. Kg2 {[%emt 0:00:41]} Re2+ {[%emt 0:00:04]} 133. Kf1 {[%emt 0:00:40]} Ra2 {[%emt 0:00:12]} 134. Rf7 {[%emt 0:00:13]} Kf3 {[%emt 0:00:12]} 135. Kg1 {[%emt 0:00:02]} Ra1+ {[%emt 0:00:40]} 136. Kh2 {[%emt 0:00:01]} Rf1 {[%emt 0:00:04]} 137. Ra7 {[%emt 0:00:10]} Re1 {[%emt 0:00:10]} 138. Rf7 {[%emt 0:01:03]} Re4 {[%emt 0:00:13]} 139. Kg1 {[%emt 0:00:46]} Ke3 {[%emt 0:00:05]} 140. Kg2 {[%emt 0:00:11]} Re8 {[%emt 0:00:03]} 141. Rf6 {[%emt 0:00:35]} Rg8+ {[%emt 0:00:06]} 142. Kf1 {[%emt 0:00:12]} Kf3 {[%emt 0:00:05]} 143. Rf7 {[%emt 0:01:13]} Rb8 {[%emt 0:00:40]} 144. Kg1 {[%emt 0:00:23]} 1/2-1/2

[Event "Commonwealth Open 2019"]
[Site "Delhi"]
[Date "2019.07.06"]
[Round "8.2"]
[White "Deepan, Chakkravarthy J."]
[Black "Narayanan.S.L"]
[Result "0-1"]
[ECO "A29"]
[WhiteElo "2557"]
[BlackElo "2603"]
[Annotator "RC"]
[PlyCount "120"]
[EventDate "2019.06.30"]
[EventType "swiss"]
[EventCountry "IND"]
[SourceTitle "playchess.com"]
[Source "ChessBase"]
[SourceQuality "1"]
[TimeControl "5400+30"]

1. c4 {[%emt 0:00:29]} e5 {[%emt 0:00:00]} 2. Nc3 {[%emt 0:00:20]} Nf6 {[%emt 0:00:41]} 3. Nf3 {[%emt 0:00:34]} Nc6 {[%emt 0:00:07]} 4. g3 {[%emt 0:00:15]} Bb4 {[%emt 0:00:39]} 5. Bg2 {[%emt 0:00:16]} O-O {[%emt 0:00:17]} 6. O-O {[%emt 0:00:07]} e4 {[%emt 0:00:46]} 7. Ng5 {[%emt 0:00:07]} Bxc3 {[%emt 0:00:06]} 8. bxc3 {[%emt 0:00:21]} Re8 {[%emt 0:02:07]} 9. f3 {[%emt 0:00:06]} exf3 {[%emt 0:07:21]} 10. Nxf3 {[%emt 0:00:13]} Qe7 {[%emt 0:01:51]} 11. e3 {[%emt 0:17:41]} d6 {[%emt 0:01:53]} 12. Qc2 {[%emt 0:02:01]} Ne5 {[%emt 0:02:20]} 13. d3 {[%emt 0:03:56]} Nxf3+ {[%emt 0:06:52]} 14. Rxf3 {[%emt 0:00:12]} Be6 {[%emt 0:00:59]} 15. e4 {[%emt 0:01:15]} Nd7 {[%emt 0:00:05]} 16. Rb1 {[%emt 0:01:33]} Ne5 {[%emt 0:06:27]} 17. Rf1 {[%emt 0:05:58]} c5 {[%emt 0:00:22]} 18. h3 {[%emt 0:05:03]} Rac8 {[%emt 0:08:50]} 19. Kh2 {[%emt 0:01:10]} b6 {[%emt 0:03:33]} 20. Qd1 {[%emt 0:02:05]} f6 {[%emt 0:08:40]} 21. Rf2 {[%emt 0:05:16]} Rf8 {[%emt 0:02:06]} 22. Rbb2 {[%emt 0:06:42]} Kh8 {[%emt 0:00:44]} 23. Rf4 {[%emt 0:01:45]} Rb8 {[%emt 0:00:40]} 24. Rf1 {[%emt 0:02:21]} Bd7 {[%emt 0:03:13]} 25. Re1 {[%emt 0:03:07]} Qe8 {[%emt 0:07:55]} 26. Bf4 {[%emt 0:00:36]} Rc8 {[%emt 0:01:05]} 27. Bc1 {[%emt 0:08:41]} Bc6 {[%emt 0:06:34]} 28. Rf2 {[%emt 0:06:16]} Ba4 {[%emt 0:01:37]} 29. Qd2 {[%emt 0:04:14]} b5 {[%emt 0:00:09]} 30. cxb5 {[%emt 0:00:08]} c4 {[%emt 0:00:52]} 31. d4 {[%emt 0:03:17]} Nd3 {[%emt 0:00:14]} 32. Ba3 {[%emt 0:00:04]} Nxe1 {[%emt 0:05:37]} 33. Qxe1 {[%emt 0:00:02]} Qxb5 {[%emt 0:00:47]} 34. Bxd6 {[%emt 0:00:18]} Rfe8 {[%emt 0:00:04]} 35. Qc1 {[%emt 0:02:26]} Qd7 {[%emt 0:00:37]} 36. Qf4 {[%emt 0:00:34]} Rcd8 {[%emt 0:12:18]} 37. Bc7 {[%emt 0:01:20]} Rc8 {[%emt 0:00:06]} 38. Bd6 {[%emt 0:00:30]} Rcd8 {[%emt 0:00:12]} 39. Ba3 {[%emt 0:03:41]} Bd1 {[%emt 0:00:51]} 40. g4 {[%emt 0:00:10]} h6 {[%emt 0:02:26]} 41. Rb2 {[%emt 0:03:32]} Qa4 {[%emt 0:02:03]} 42. Bc5 {[%emt 0:00:45]} Bc2 {[%emt 0:00:09]} 43. h4 {[%emt 0:02:25]} Bd3 {[%emt 0:00:06]} 44. g5 {[%emt 0:00:33]} Qc6 {[%emt 0:01:38]} 45. gxh6 {[%emt 0:03:58]} Bxe4 {[%emt 0:00:05]} 46. hxg7+ {[%emt 0:01:15]} Kxg7 {[%emt 0:00:15]} 47. Qg4+ {[%emt 0:00:36]} Kh6 {[%emt 0:00:37]} 48. Qf4+ {[%emt 0:02:56]} Kg7 {[%emt 0:00:26]} 49. Qg4+ {[%emt 0:02:31]} Kh6 {[%emt 0:00:03]} 50. Qf4+ {[%emt 0:00:43]} Kg7 {[%emt 0:00:51]} 51. Bh3 {[%emt 0:00:35]} Kf7 {[%emt 0:00:22]} 52. Rf2 {[%emt 0:00:27]} Rh8 {[%emt 0:00:30]} 53. Bf1 {[%emt 0:00:29]} Bd5 {[%emt 0:00:10]} 54. Be2 {[%emt 0:00:15]} Rde8 {[%emt 0:00:35]} 55. h5 Re4 {[%emt 0:00:24]} 56. Qf5 {[%emt 0:01:04]} Rh6 {[%emt 0:01:06]} 57. Kg1 {[%emt 0:00:30]} Qe6 {[%emt 0:00:28]} 58. Qf3 {[%emt 0:00:41]} Rh4 {[%emt 0:00:52]} 59. Bxc4 {[%emt 0:00:07]} Rg4+ {[%emt 0:00:03]} 60. Rg2 {[%emt 0:00:36]} Qe1+ {[%emt 0:00:15]} 0-1

[Event "Commonwealth Open 2019"]
[Site "Delhi"]
[Date "2019.07.06"]
[Round "8.3"]
[White "Aravindh, Chithambaram Vr."]
[Black "Lalith, Babu M R"]
[Result "1-0"]
[ECO "D38"]
[WhiteElo "2598"]
[BlackElo "2571"]
[Annotator "ChessBase"]
[PlyCount "87"]
[EventDate "2019.06.30"]
[EventType "swiss"]
[EventCountry "IND"]
[SourceTitle "playchess.com"]
[Source "ChessBase"]
[SourceQuality "1"]
[TimeControl "5400+30"]

1. d4 {[%emt 0:00:00]} d5 {[%emt 0:00:00]} 2. c4 {[%emt 0:00:00]} e6 {[%emt 0:00:00]} 3. Nc3 {[%emt 0:00:07]} Bb4 {[%emt 0:00:00]} 4. Nf3 {[%emt 0:00:06]} Nf6 {[%emt 0:00:00]} 5. Qa4+ {[%emt 0:00:09]} Nc6 {[%emt 0:00:05]} 6. e3 {[%emt 0:00:06]} O-O {[%emt 0:02:51]} 7. Qc2 {[%emt 0:00:28]} Bd6 {[%emt 0:05:13]} 8. Bd2 {[%emt 0:07:56]} b6 {[%emt 0:03:13]} 9. a3 {[%emt 0:05:52]} Bb7 {[%emt 0:07:20]} 10. Bd3 {[%emt 0:06:41]} dxc4 {[%emt 0:10:03]} 11. Bxc4 {[%emt 0:00:43]} a6 {[%emt 0:07:44]} 12. O-O-O {[%emt 0:02:54]} b5 {[%emt 0:01:34]} 13. Ba2 {[%emt 0:06:16]} e5 {[%emt 0:00:30]} 14. Bb1 {[%emt 0:00:30]} Re8 {[%emt 0:17:45]} 15. Rhe1 {[%emt 0:09:18]} b4 {[%emt 0:03:18]} 16. dxe5 {[%emt 0:05:43]} Bxe5 {[%emt 0:18:30]} 17. Nxe5 {[%emt 0:01:09]} Rxe5 {[%emt 0:00:03]} 18. Na2 {[%emt 0:09:06]} bxa3 {[%emt 0:05:36]} 19. Bc3 {[%emt 0:00:41]} Qe7 {[%emt 0:00:03]} 20. Bxe5 {[%emt 0:09:16]} Nxe5 {[%emt 0:01:14]} 21. e4 {[%emt 0:00:12]} axb2+ {[%emt 0:00:56]} 22. Qxb2 {[%emt 0:00:09]} Bc6 {[%emt 0:05:21]} 23. f4 {[%emt 0:09:53]} Ned7 {[%emt 0:00:18]} 24. Qc3 {[%emt 0:09:12]} Nc5 {[%emt 0:02:47]} 25. Nb4 {[%emt 0:05:36]} Ba4 {[%emt 0:03:20]} 26. Nd5 {[%emt 0:06:10]} Nxd5 {[%emt 0:01:05]} 27. Rxd5 {[%emt 0:00:09]} Nd7 {[%emt 0:01:01]} 28. Re3 {[%emt 0:02:41]} c6 {[%emt 0:02:43]} 29. Rd4 {[%emt 0:00:28]} Bb5 {[%emt 0:00:02]} 30. Rg3 {[%emt 0:01:08]} g6 {[%emt 0:00:04]} 31. h4 {[%emt 0:00:15]} Nf6 {[%emt 0:00:24]} 32. Rg5 {[%emt 0:00:05]} Rc8 {[%emt 0:01:42]} 33. e5 {[%emt 0:01:02]} Nh5 {[%emt 0:00:57]} 34. f5 {[%emt 0:00:26]} c5 {[%emt 0:00:18]} 35. f6 {[%emt 0:01:29]} Qb7 {[%emt 0:00:26]} 36. Rd2 {[%emt 0:00:39]} Nf4 {[%emt 0:00:07]} 37. h5 {[%emt 0:00:57]} Ne6 {[%emt 0:01:05]} 38. Rg3 {[%emt 0:00:04]} Be8 {[%emt 0:00:10]} 39. hxg6 {[%emt 0:00:11]} hxg6 {[%emt 0:00:04]} 40. Qc4 {[%emt 0:00:42]} Rb8 {[%emt 0:00:40]} 41. Ba2 {[%emt 0:00:16]} Qc7 {[%emt 0:00:15]} 42. Rxg6+ {[%emt 0:00:18]} fxg6 {[%emt 0:01:34]} 43. Qxe6+ {[%emt 0:00:04]} Kh7 {[%emt 0:00:12]} 44. Qh3# {[%emt 0:00:05]} 1-0

[Event "Commonwealth Open 2019"]
[Site "Delhi"]
[Date "2019.07.06"]
[Round "8.4"]
[White "Erigaisi, Arjun"]
[Black "Debashis, Das"]
[Result "1-0"]
[ECO "E00"]
[WhiteElo "2526"]
[BlackElo "2544"]
[Annotator "ChessBase"]
[PlyCount "43"]
[EventDate "2019.06.30"]
[EventType "swiss"]
[EventCountry "IND"]
[SourceTitle "playchess.com"]
[Source "ChessBase"]
[SourceQuality "1"]
[TimeControl "5400+30"]

1. d4 {[%emt 0:00:00]} e6 {[%emt 0:00:53]} 2. c4 {[%emt 0:00:00]} Bb4+ {[%emt 0:00:05]} 3. Nc3 {[%emt 0:00:00]} b6 {[%emt 0:01:29]} 4. Qc2 {[%emt 0:00:05]} c5 {[%emt 0:00:11]} 5. e4 {[%emt 0:00:13]} Nf6 {[%emt 0:00:30]} 6. d5 {[%emt 0:00:30]} O-O {[%emt 0:06:55]} 7. Nge2 {[%emt 0:08:56]} d6 {[%emt 0:03:33]} 8. a3 {[%emt 0:03:46]} Ba5 {[%emt 0:00:23]} 9. f3 {[%emt 0:04:48]} b5 {[%emt 0:06:24]} 10. cxb5 {[%emt 0:18:27]} exd5 {[%emt 0:06:08]} 11. exd5 {[%emt 0:00:08]} a6 12. Bd2 {[%emt 0:11:57]} Bd7 {[%emt 0:17:40]} 13. bxa6 {[%emt 0:07:47]} Nxa6 {[%emt 0:00:53]} 14. Ng3 {[%emt 0:01:08]} Re8+ {[%emt 0:11:48]} 15. Be2 {[%emt 0:00:21]} Nc7 {[%emt 0:01:04]} 16. O-O {[%emt 0:03:56]} Ncxd5 {[%emt 0:01:15]} 17. Nxd5 {[%emt 0:02:34]} Nxd5 {[%emt 0:00:15]} 18. Ne4 {[%emt 0:00:30]} Bf5 {[%emt 0:00:30]} 19. Rac1 {[%emt 0:06:14]} Re5 {[%emt 0:26:07]} 20. Rcd1 {[%emt 0:05:19]} Bxd2 {[%emt 0:09:37]} 21. Bc4 {[%emt 0:00:30]} Bxe4 {[%emt 0:00:18]} 22. Qxd2 {[%emt 0:00:08]} 1-0

[Event "Commonwealth Open 2019"]
[Site "Delhi"]
[Date "2019.07.06"]
[Round "8.5"]
[White "Tania, Sachdev"]
[Black "Iniyan, P."]
[Result "0-1"]
[ECO "E81"]
[WhiteElo "2401"]
[BlackElo "2525"]
[Annotator "ChessBase"]
[PlyCount "120"]
[EventDate "2019.06.30"]
[EventType "swiss"]
[EventCountry "IND"]
[SourceTitle "playchess.com"]
[Source "ChessBase"]
[SourceQuality "1"]
[TimeControl "5400+30"]

1. d4 {[%emt 0:00:35]} Nf6 {[%emt 0:00:15]} 2. c4 {[%emt 0:00:04]} g6 {[%emt 0:00:05]} 3. Nc3 {[%emt 0:00:03]} Bg7 {[%emt 0:00:07]} 4. e4 {[%emt 0:00:05]} d6 {[%emt 0:00:05]} 5. f3 {[%emt 0:00:04]} O-O {[%emt 0:00:06]} 6. Nge2 {[%emt 0:00:04]} c5 {[%emt 0:00:07]} 7. d5 {[%emt 0:00:04]} e6 {[%emt 0:00:05]} 8. Ng3 {[%emt 0:00:09]} exd5 {[%emt 0:00:06]} 9. cxd5 {[%emt 0:00:02]} a6 {[%emt 0:00:37]} 10. a4 {[%emt 0:00:05]} h5 {[%emt 0:00:05]} 11. Bg5 {[%emt 0:00:26]} Qb6 {[%emt 0:00:43]} 12. Qd2 {[%emt 0:00:20]} Nh7 {[%emt 0:00:06]} 13. a5 {[%emt 0:03:11]} Qc7 {[%emt 0:00:53]} 14. Bh6 {[%emt 0:04:31]} Bxh6 {[%emt 0:03:23]} 15. Qxh6 {[%emt 0:00:05]} b5 {[%emt 0:04:04]} 16. axb6 {[%emt 0:03:42]} Qxb6 {[%emt 0:00:42]} 17. Rb1 {[%emt 0:15:52]} Nd7 {[%emt 0:06:41]} 18. Be2 {[%emt 0:00:18]} c4 {[%emt 0:10:14]} 19. Bxc4 {[%emt 0:01:46]} Ne5 {[%emt 0:00:25]} 20. Be2 {[%emt 0:00:04]} f5 {[%emt 0:02:41]} 21. exf5 {[%emt 0:17:14]} Bxf5 {[%emt 0:00:09]} 22. Nxf5 {[%emt 0:00:13]} Rxf5 {[%emt 0:01:36]} 23. Qd2 {[%emt 0:00:44]} Nf6 {[%emt 0:01:55]} 24. Rd1 {[%emt 0:18:45]} Rc8 {[%emt 0:10:02]} 25. Na4 {[%emt 0:04:28]} Qb3 {[%emt 0:01:00]} 26. Nc3 {[%emt 0:00:04]} Nc4 {[%emt 0:16:44]} 27. Bxc4 {[%emt 0:07:23]} Qxc4 {[%emt 0:00:07]} 28. Qd4 {[%emt 0:02:34]} Qb3 {[%emt 0:14:15]} 29. O-O {[%emt 0:03:56]} Qxb2 {[%emt 0:01:25]} 30. Ne4 {[%emt 0:00:39]} Qxd4+ {[%emt 0:00:48]} 31. Rxd4 {[%emt 0:00:03]} Nxe4 {[%emt 0:00:08]} 32. fxe4 {[%emt 0:00:06]} Rxf1+ {[%emt 0:00:08]} 33. Kxf1 {[%emt 0:00:01]} a5 {[%emt 0:00:07]} 34. Ra4 {[%emt 0:01:48]} Rc5 {[%emt 0:00:05]} 35. Kf2 {[%emt 0:00:49]} Kf7 {[%emt 0:00:05]} 36. Ke3 {[%emt 0:00:18]} Kf6 {[%emt 0:00:09]} 37. Kd4 {[%emt 0:01:47]} Rb5 {[%emt 0:01:31]} 38. Kc4 {[%emt 0:04:25]} Rc5+ {[%emt 0:00:16]} 39. Kd4 {[%emt 0:00:06]} Rb5 {[%emt 0:00:02]} 40. Kc4 {[%emt 0:00:08]} Rb2 {[%emt 0:00:05]} 41. g3 {[%emt 0:05:46]} Ke5 {[%emt 0:01:54]} 42. Rxa5 {[%emt 0:00:27]} Kxe4 {[%emt 0:00:06]} 43. Ra6 {[%emt 0:04:37]} Ke5 {[%emt 0:00:06]} 44. Ra8 {[%emt 0:01:03]} Rc2+ {[%emt 0:00:08]} 45. Kd3 {[%emt 0:00:48]} Rxh2 {[%emt 0:05:04]} 46. Rg8 {[%emt 0:00:23]} Kf5 {[%emt 0:04:03]} 47. Rf8+ {[%emt 0:01:36]} Kg5 {[%emt 0:01:21]} 48. Rd8 {[%emt 0:00:37]} Rh3 {[%emt 0:00:09]} 49. Rxd6 {[%emt 0:00:32]} Rxg3+ {[%emt 0:00:34]} 50. Ke4 {[%emt 0:00:55]} Rg4+ {[%emt 0:00:27]} 51. Ke3 {[%emt 0:00:46]} Rg3+ {[%emt 0:01:31]} 52. Kf2 {[%emt 0:00:33]} h4 {[%emt 0:01:19]} 53. Rd8 {[%emt 0:00:19]} Kg4 {[%emt 0:00:13]} 54. d6 {[%emt 0:00:17]} Rd3 {[%emt 0:00:19]} 55. d7 {[%emt 0:01:05]} g5 {[%emt 0:00:05]} 56. Ke2 {[%emt 0:00:06]} Rd5 {[%emt 0:00:07]} 57. Ke3 {[%emt 0:01:02]} h3 {[%emt 0:00:45]} 58. Ke4 {[%emt 0:00:31]} Rd1 {[%emt 0:00:27]} 59. Ke3 {[%emt 0:00:18]} h2 {[%emt 0:00:19]} 60. Rh8 {[%emt 0:00:09]} Kg3 {[%emt 0:00:05] Kd4} 0-1

[Event "Commonwealth Open 2019"]
[Site "Delhi"]
[Date "2019.07.06"]
[Round "8.6"]
[White "Swayams, Mishra"]
[Black "Karthikeyan, P.."]
[Result "1/2-1/2"]
[ECO "A45"]
[WhiteElo "2493"]
[BlackElo "2445"]
[Annotator "ChessBase"]
[PlyCount "73"]
[EventDate "2019.06.30"]
[EventType "swiss"]
[EventCountry "IND"]
[SourceTitle "playchess.com"]
[Source "ChessBase"]
[SourceQuality "1"]
[TimeControl "5400+30"]

1. d4 {[%emt 0:00:00]} Nf6 {[%emt 0:00:00]} 2. Bf4 {[%emt 0:00:00]} g6 {[%emt 0:00:00]} 3. Nc3 {[%emt 0:00:00]} d5 {[%emt 0:00:00]} 4. e3 {[%emt 0:00:18]} Bg7 {[%emt 0:00:32]} 5. h4 {[%emt 0:00:15]} c5 {[%emt 0:00:18]} 6. Nb5 {[%emt 0:00:54]} Na6 {[%emt 0:00:03]} 7. c3 {[%emt 0:00:10]} O-O {[%emt 0:00:40]} 8. Be2 {[%emt 0:01:30]} Bd7 {[%emt 0:01:19]} 9. a4 {[%emt 0:00:31]} c4 {[%emt 0:00:28]} 10. h5 {[%emt 0:02:08]} Qb6 {[%emt 0:07:08]} 11. hxg6 {[%emt 0:01:20]} fxg6 {[%emt 0:00:35]} 12. b3 {[%emt 0:00:17]} Rac8 {[%emt 0:05:01]} 13. bxc4 {[%emt 0:08:39]} dxc4 {[%emt 0:00:29]} 14. Bf3 {[%emt 0:00:35]} Bc6 {[%emt 0:04:41]} 15. Be5 {[%emt 0:02:25]} Nb8 {[%emt 0:08:12]} 16. d5 {[%emt 0:06:56]} Bxb5 {[%emt 0:06:24]} 17. Bd4 {[%emt 0:01:44]} Qd6 {[%emt 0:02:05]} 18. axb5 {[%emt 0:00:27]} Nbd7 {[%emt 0:00:57]} 19. Rxa7 {[%emt 0:02:11]} Nc5 {[%emt 0:03:24]} 20. Bxc5 {[%emt 0:05:10]} Rxc5 {[%emt 0:03:56]} 21. Rxb7 {[%emt 0:00:08]} g5 {[%emt 0:06:02]} 22. e4 {[%emt 0:15:43]} Rb8 {[%emt 0:14:57]} 23. Rxb8+ {[%emt 0:00:31]} Qxb8 {[%emt 0:00:02]} 24. Nh3 {[%emt 0:00:50]} Rxb5 {[%emt 0:00:24]} 25. O-O {[%emt 0:00:13]} Qe5 {[%emt 0:00:55]} 26. Bg4 {[%emt 0:01:06]} Nxe4 {[%emt 0:06:08]} 27. Be6+ {[%emt 0:00:05]} Kh8 {[%emt 0:00:08]} 28. Qh5 {[%emt 0:03:16]} Nf6 {[%emt 0:07:10]} 29. Qxg5 {[%emt 0:01:47]} Nxd5 {[%emt 0:02:59]} 30. Qg4 {[%emt 0:04:16]} Nxc3 {[%emt 0:02:01]} 31. Bxc4 {[%emt 0:00:28]} Rc5 {[%emt 0:00:38]} 32. Qd7 {[%emt 0:05:22]} Qf6 {[%emt 0:02:28]} 33. Qd8+ {[%emt 0:00:45]} Qf8 {[%emt 0:02:40]} 34. Qd3 {[%emt 0:00:06]} Qf5 {[%emt 0:00:24]} 35. Qd8+ {[%emt 0:00:56]} Qf8 {[%emt 0:00:03]} 36. Qd3 {[%emt 0:00:07]} Qf5 {[%emt 0:00:03]} 37. Qd8+ 1/2-1/2